Cogmind - Beta 16.1 @@@ ROGUE MODE // 2026.02.19 @ 23:26:51 // Winter2019/RPGLIKE Player: badjay Result: Destroyed by S-10 Pest with Light Assault Rifle Performance ------------- Evolutions (1) 500 Regions Visited (4) 800 Robots Destroyed (22) 110 Value Destroyed (326) 326 Prototype IDs (6) 120 Alien Tech Used (0) 0 Bonus (13) 13 TOTAL SCORE: 1869 Bonus ------- High Alert Combat Kills 13 Cogmind --------- Core Integrity 0/600 Matter 300/300 Energy 280/280 System Corruption 0% Temperature Cool (0) Movement Flying (34) Location -9/Mines Parts ------- > --- POWER (1) -------- Heavy Ion Engine > --- PROPULSION (3) --- Flight Unit Improved Flight Unit Improved Flight Unit > --- UTILITY (2) ------ Structural Scanner > --- WEAPON (1) ------- Hammer > --- INVENTORY (0) ---- (None) Peak State ------------ > --- POWER ------------ Heavy Ion Engine > --- PROPULSION ------- Flight Unit Improved Flight Unit Improved Flight Unit > --- UTILITY ---------- Structural Scanner > --- WEAPON ----------- Hammer > --- INVENTORY -------- (None) [Rating: 12] Favorites ----------- Power Light Ion Engine Engine Light Ion Engine Propulsion Flight Unit Flight Unit Flight Unit Utility Structural Scanner Device Structural Scanner Weapon Rocket Launcher Launcher Rocket Launcher Special Weapon Mining Laser Impact Weapon Hammer Build | -11 -10 -10 -9 -9 ------- Run | Yrd Mat Min Mat Min Slots Evolved 3 | . . 3 . . Power . | . . . . . Propulsion 2 | . . 2 . . Utility 1 | . . 1 . . Weapon . | . . . . . Parts Attached 11 | . 2 4 5 . Power 2 | . . 1 1 . Engine 2 | . . 1 1 . Core . | . . . . . Reactor . | . . . . . Propulsion 5 | . 1 2 2 . Treads . | . . . . . Leg . | . . . . . Wheel . | . . . . . Hover . | . . . . . Flight 5 | . 1 2 2 . Utility 1 | . . . 1 . Device 1 | . . . 1 . Storage . | . . . . . Processor . | . . . . . Hackware . | . . . . . Protection . | . . . . . Artifact . | . . . . . Weapon 3 | . 1 1 1 . Energy Gun . | . . . . . Energy Cannon . | . . . . . Ballistic Gun . | . . . . . Ballistic Cannon . | . . . . . Launcher 1 | . . 1 . . Special Weapon 1 | . 1 . . . Impact Weapon 1 | . . . 1 . Slashing Weapon . | . . . . . Piercing Weapon . | . . . . . Special Melee Weapon . | . . . . . Unidentified Prototypes 1 | . . . 1 . Parts Lost . | . . . . . Power . | . . . . . Propulsion . | . . . . . Utility . | . . . . . Weapon . | . . . . . Highest Loss Streak . | . . . . . To Critical Strikes . | . . . . . Average Backups . | . . . . . Power . | . . . . . Propulsion . | . . . . . Utility . | . . . . . Weapon . | . . . . . Tool/Special . | . . . . . Unused Backups . | . . . . . Power . | . . . . . Propulsion . | . . . . . Utility . | . . . . . Weapon . | . . . . . Tool/Special . | . . . . . Average Slot Usage (%) 58 | . 10 51 79 85 Engine 6 | . . . 14 14 Flight 31 | . 8 26 42 42 Device 4 | . . . 8 14 Launcher 9 | . . 23 1 . Impact Weapon 5 | . . . 12 14 Peak Build Rating 12 | . 2 6 12 12 Average Rating 5 | . . 3 8 12 On Entrance 4 | . . 2 6 12 Avg Prop Armor Cover (%) . | . . . . . Naked Turns 67 | . 67 . . . Heaviest Build 11 | . 1 7 11 11 Greatest Support 15 | 3 4 12 15 15 Greatest Overweight (x) . | . . . . . Average Overweight (x) . | . . . . . Largest Inventory Capacity . | . . . . . Average Capacity . | . . . . . Most Carried . | . . . . . Average Carried . | . . . . . Final Capacity . | . . . . . Final Carried . | . . . . . Class Distribution -------------------- 97% | Hacker-Mutant Dominant Class ---------------- Hacker-Mutant | -10/Materials Hacker-Mutant | -10/Mines Hacker-Mutant | -9/Materials Hacker-Mutant | -9/Mines Resources | -11 -10 -10 -9 -9 ----------- Run | Yrd Mat Min Mat Min Matter Collected 398 | 200 . 85 113 . Remotely . | . . . . . Salvage Created 295 | . . 27 268 . Parts 14 | . . 11 3 . Haulers Intercepted 2 | . . . 2 . Recyclers Shooed . | . . . . . Parts Field Recycled . | . . . . . Retrieved Matter . | . . . . . Parts Self-Destructed . | . . . . . Prevented . | . . . . . Parts Restored . | . . . . . Kills | -11 -10 -10 -9 -9 ------- Run | Yrd Mat Min Mat Min Combat Hostiles Destroyed 19 | . . 8 11 . Melee 8 | . . . 8 . AOE 8 | . . 8 . . Classes Destroyed 5 | . . 2 3 . Hauler 2 | . . . 2 . Operator 1 | . . . 1 . Swarmer 16 | . . 6 10 . Grunt 2 | . . 2 . . Sentry 1 | . . . 1 . Best Kill Streak 8 | . . 3 8 . Combat Bots Only 8 | . . 3 8 . Max Kills in Single Turn 2 | . . 2 1 . Gunslinging . | . . . . . Exploded 2 | . . 2 . . Melee 1 | . . . 1 . Uniques/NPCs Destroyed . | . . . . . Combat | -11 -10 -10 -9 -9 -------- Run | Yrd Mat Min Mat Min Hostile Shots Fired 177 | . 9 16 135 17 Missed 86 | . 7 8 62 9 Hits 91 | . 2 8 73 8 Projectile 91 | . 2 8 73 8 Critical Strikes 1 | . . . 1 . Damage Taken 943 | . 22 133 726 62 Core 825 | . 22 121 624 58 Absorbed by Shields . | . . . . . Redirected to Core 374 | . . 39 325 10 Core Remaining (%) 100 | 100 . 100 . . Volleys Fired 8 | . . 8 . . Largest 1 | . . 1 . . Hottest 33 | . . 33 . . Shots Fired 8 | . . 8 . . Gun . | . . . . . Cannon . | . . . . . Launcher 8 | . . 8 . . Special . | . . . . . Kinetic . | . . . . . Thermal . | . . . . . Explosive 8 | . . 8 . . Electromagnetic . | . . . . . Robot Hit Streak 2 | . . 2 . . Robot Miss Streak 2 | . . 2 . . Penetration Max . | . . . . . Secondary Targets . | . . . . . Shots Hit Robots 44 | . . 3 38 3 Core Hits 13 | . . 10 3 . Critical Kills 1 | . . . 1 . Critical Parts Destroyed 9 | . . . 9 . Critical Strikes 10 | . . . 10 . Smash 10 | . . . 10 . Melee Attacks 49 | . . . 46 3 Impact 49 | . . . 46 3 Slashing . | . . . . . Piercing . | . . . . . Sneak Attacks 3 | . . . 2 1 Combat Hostiles 1 | . . . . 1 Follow-up Attacks . | . . . . . Damage Inflicted 1615 | . . 536 973 106 Guns . | . . . . . Cannons . | . . . . . Explosions 536 | . . 536 . . Melee 1079 | . . . 973 106 Ramming . | . . . . . Kinetic . | . . . . . Thermal . | . . . . . Explosive 536 | . . 536 . . Electromagnetic . | . . . . . Impact 1079 | . . . 973 106 Slashing . | . . . . . Piercing . | . . . . . Highest Corruption . | . . . . . Average Corruption . | . . . . . Corruption Purged . | . . . . . Corruption Blocked . | . . . . . Overload Shots . | . . . . . Overflow Damage 370 | . . 8 334 28 Projectiles . | . . . . . Explosions 8 | . . 8 . . Melee 362 | . . . 334 28 Knockbacks 3 | . . . 3 . Impact 3 | . . . 3 . Kinetic . | . . . . . Secondary . | . . . . . Self-Inflicted Damage 66 | . . 66 . . Shots 2 | . . 2 . . Rammed . | . . . . . Targets Rammed . | . . . . . Kicked . | . . . . . Crushed . | . . . . . Highest Temperature 11 | . . . 11 . Average Temperature 5 | . . . 5 . Received Heat Transfer 138 | . 12 . 126 . Siege Activations . | . . . . . Martial Activations . | . . . . . Shielding Activations . | . . . . . Robots Disrupted . | . . . . . Combat Hostiles . | . . . . . Robots Corrupted 6 | . . . 6 . Combat Hostiles 3 | . . . 3 . Parts Fried 11 | . . . 11 . Impact Corruptions 21 | . . . 19 2 Robots Melted . | . . . . . Combat Hostiles . | . . . . . Parts Melted . | . . . . . Heat Transferred . | . . . . . Parts Sabotaged . | . . . . . Parts Stolen . | . . . . . Parts Stripped . | . . . . . Power Chain Reactions . | . . . . . Alert | -11 -10 -10 -9 -9 ------- Run | Yrd Mat Min Mat Min Maximum Alert Level 2 | . . . 2 . Low Security (%) 80 | 100 100 100 57 100 Level 1 13 | . . . 28 . Level 2 6 | . . . 13 . Level 3 . | . . . . . Level 4 . | . . . . . Level 5 . | . . . . . High Security . | . . . . . Max Security . | . . . . . Peak Influence 424 | . 22 179 424 161 Initial 161 | . . 6 61 161 Average 142 | . 7 113 211 161 Influence Increases 883 | . 47 293 543 . Destroy 0b10 Robot/C 400 | . . 160 240 . Destroy 0b10 Robot/NC 15 | . . . 15 . Destroy Leader 84 | . . 30 54 . Allied During Kill 7 | . . 7 . . Successful Hack 40 | . 2 . 38 . Disable Machine 30 | . . 15 15 . Destroy Structure 37 | . . 36 1 . Partial Spotted 30 | . . 15 15 . Lose Combat Pursuer 240 | . 45 30 165 . Influence Decreases 722 | . 30 151 288 253 Entered New Map 362 | . . 11 98 253 Time Decay 340 | . 30 140 170 . Lost Ally 20 | . . . 20 . Squads Dispatched 4 | . 3 . 1 . Investigation 3 | . 2 . 1 . Extermination . | . . . . . Reinforcement 1 | . 1 . . . Assault . | . . . . . Garrison . | . . . . . Intercept . | . . . . . Searches Triggered . | . . . . . Construction Impeded . | . . . . . Haulers Reinforced . | . . . . . Active Scanning Responses . | . . . . . Cargo Convoy Interrupts . | . . . . . Stealth | -11 -10 -10 -9 -9 --------- Run | Yrd Mat Min Mat Min Distress Signals 3 | . . . 3 . Communications Jammed . | . . . . . Distress Signals . | . . . . . Times Spotted 57 | . 11 8 34 4 Peak Tracking Total 7 | . 7 3 7 4 Tactical Retreats 9 | . 2 1 6 . Traps | -11 -10 -10 -9 -9 ------- Run | Yrd Mat Min Mat Min Traps Triggered 4 | . 3 . 1 . Indirectly . | . . . . . Trap Hack Attempts . | . . . . . Triggered . | . . . . . Disarmed . | . . . . . Reprogrammed . | . . . . . Reused . | . . . . . Traps Extracted . | . . . . . Installed . | . . . . . Triggered . | . . . . . Machines | -11 -10 -10 -9 -9 ---------- Run | Yrd Mat Min Mat Min Machines Disabled 2 | . . 1 1 . Max in Single Turn 1 | . . 1 1 . Machines Repaired . | . . . . . Machines Dismantled . | . . . . . Machines Sabotaged . | . . . . . Overloaded Fab Kills . | . . . . . Hacking | -11 -10 -10 -9 -9 --------- Run | Yrd Mat Min Mat Min Machines Accessed 15 | . 3 . 12 . Terminals 14 | . 3 . 11 . Fabricators . | . . . . . Repair Stations . | . . . . . Recycling Units . | . . . . . Scanalyzers 1 | . . . 1 . Garrison Access . | . . . . . Total Hacks 83 | . 16 . 67 . Successful 54 | . 9 . 45 . Failed 28 | . 7 . 21 . Catastrophic 3 | . 2 . 1 . Database Lockouts 1 | . . . 1 . Manual 61 | . 12 . 49 . Terminals 80 | . 16 . 64 . Fabricators . | . . . . . Repair Stations . | . . . . . Recycling Units . | . . . . . Scanalyzers 3 | . . . 3 . Garrison Access . | . . . . . Terminal Hacks 19 | . 3 . 16 . Prototype ID Bank 3 | . . . 3 . Level Access Points 1 | . . . 1 . Branch Access Points 2 | . . . 2 . Emergency Access Points 1 | . . . 1 . Alert Level 1 | . . . 1 . Hauler Manifests 2 | . 1 . 1 . Registered Components 1 | . . . 1 . Registered Prototypes 2 | . 1 . 1 . Zone Layout 6 | . 1 . 5 . Fabricator Hacks . | . . . . . Repair Station Hacks . | . . . . . Recycling Unit Hacks . | . . . . . Scanalyzer 1 | . . . 1 . Retrieve Study 1 | . . . 1 . Garrison Access Hacks . | . . . . . Unauthorized Hacks 34 | . 6 . 28 . Terminals 34 | . 6 . 28 . Track 8 | . 1 . 7 . Botnet 8 | . 3 . 5 . Disrupt 3 | . . . 3 . Operators 2 | . . . 2 . Skim 13 | . 2 . 11 . Fabricators . | . . . . . Repair Stations . | . . . . . Recycling Units . | . . . . . Scanalyzers . | . . . . . Garrison Access . | . . . . . Data Cores Recovered . | . . . . . Used . | . . . . . Hacking Detections 9 | . 3 . 6 . Full Trace Events 1 | . 1 . . . Feedback Events . | . . . . . Feedback Blocked . | . . . . . Robot Schematics Acquired . | . . . . . Robots Built . | . . . . . Authchips . | . . . . . Time . | . . . . . Total Robot Build Rating . | . . . . . Part Schematics Acquired . | . . . . . Parts Built . | . . . . . Authchips . | . . . . . Time . | . . . . . Total Part Build Rating . | . . . . . Part Studies Acquired 1 | . . . 1 . Parts Repaired . | . . . . . Time . | . . . . . Parts Recycled . | . . . . . Recycled Matter . | . . . . . Retrieved Matter . | . . . . . Retrieved Components . | . . . . . Parts Scanalyzed . | . . . . . Part Schematics Acquired . | . . . . . Parts Damaged . | . . . . . Bothacking | -11 -10 -10 -9 -9 ------------ Run | Yrd Mat Min Mat Min Used RIF Installer . | . . . . . Robots Hacked . | . . . . . Non-combat . | . . . . . Combat . | . . . . . Robot Hacks Applied . | . . . . . Relay Couplers Released . | . . . . . Fabnet Peak Effective % . | . . . . . Robots Rewired . | . . . . . Allies Hacked . | . . . . . Hacks Repelled . | . . . . . Allies | -11 -10 -10 -9 -9 -------- Run | Yrd Mat Min Mat Min Total Allies 1 | . . 1 . . Largest Group 1 | . . 1 1 . Highest-Rated Group 31 | . . 31 31 . Highest-Rated Ally 31 | . . 31 31 . Total Orders . | . . . . . Ally Attacks 5 | . . . 5 . Total Damage 65 | . . . 65 . Kills 1 | . . . 1 . Allies Corrupted . | . . . . . Allies Melted . | . . . . . Intel | -11 -10 -10 -9 -9 ------- Run | Yrd Mat Min Mat Min Active Infowar (turns) 240 | . . . 232 8 Structural 240 | . . . 232 8 Robot Analysis Total . | . . . . . Derelict Logs Recovered 2 | . . 2 . . Drone Launches . | . . . . . Drone Recoveries . | . . . . . Exploration | -11 -10 -10 -9 -9 ------------- Run | Yrd Mat Min Mat Min Turns Passed 780 | 12 108 293 359 8 Spaces Moved 1450 | 23 230 560 633 4 Core 156 | 23 133 . . . Treads . | . . . . . Legs . | . . . . . Wheels . | . . . . . Hover . | . . . . . Flight 1294 | . 97 560 633 4 Fastest Speed 34 | 50 40 34 34 34 Average Speed 38 | 50 45 39 34 34 Slowest Speed 50 | 50 50 40 34 34 Overloaded Moves . | . . . . . Propulsion Burnouts . | . . . . . Robots Hopped 12 | . 4 5 3 . Potential Cave-ins . | . . . . . Cave-ins Triggered . | . . . . . Exploration Rate (%) 45 | 3 44 98 79 5 Regions Visited 4 Branch Regions 2 Pre-discovered Areas 3 | . . 1 2 . Known Exits Taken 1 | . . . 1 . Unknown Exits Taken 3 | 1 1 1 . . Scrap Searched 1 | . . 1 . . Spaces Dug 1 | . . . 1 . Terrain Destroyed 57 | . . 56 1 . Melee 1 | . . . 1 . Projectile . | . . . . . AOE 56 | . . 56 . . Terrain Rammed . | . . . . . Walls Destroyed . | . . . . . Machines Disabled . | . . . . . Actions | -11 -10 -10 -9 -9 --------- Run | Yrd Mat Min Mat Min Total 1561 | 22 227 613 692 7 Wait 45 | . . 40 5 . Move 1422 | 22 221 549 626 4 Hop 12 | . 4 5 3 . Pick Up . | . . . . . Fast Attach 7 | . 2 3 2 . Attach . | . . . . . Detach . | . . . . . Swap 4 | . . 1 3 . Drop 3 | . . . 3 . Fire 8 | . . 8 . . Melee 49 | . . . 46 3 Ram . | . . . . . Kick . | . . . . . Crush . | . . . . . Escape Stasis . | . . . . . Rewire . | . . . . . Trap . | . . . . . Miscellaneous 11 | . . 7 4 . Route ------- -11/Scrapyard -10/Materials (discovered 2 exits: *Mat / [*Min]) -10/Mines (discovered 2 exits: *Mat x2) -9/Materials (discovered 5 exits: *Mat x3 / *Min x2) -9/Mines (discovered 2 exits: *Mat x2) History --------- Turn | Location | Event 3 | -11/Scrapyard | Discovered new exit (range 16) 13 | -11/Scrapyard | Entered Materials 23 | -10/Materials | Discovered new exit (range 16) 23 | -10/Materials | Discovered new exit (range 19) 121 | -10/Materials | Entered Mines 124 | -10/Mines | Learned Materials security intel 128 | -10/Mines | Received a Rocket Launcher from a helpful Derelict 144 | -10/Mines | Discovered new exit (range 8) 151 | -10/Mines | Learned location of Mines (-9) 154 | -10/Mines | Received a Mining Laser from a helpful Derelict 245 | -10/Mines | A weapon hastily lodged in a ceiling crevice suddenly fell to the ground 253 | -10/Mines | Discovered new exit (range 3) 321 | -10/Mines | Build established: Hacker-Mutant 370 | -10/Mines | Reached level 2 397 | -10/Mines | Upgraded with Propulsion slot (x2) 414 | -10/Mines | Upgraded with Utility slot (x1) 414 | -10/Mines | Entered Materials 414 | -9/Materials | Accompanied by 1 ally 414 | -9/Materials | Discovered new exit (range 7) 416 | -9/Materials | Reached level 3 419 | -9/Materials | Identified exit to Mines 477 | -9/Materials | Identified exit to Materials 487 | -9/Materials | Central database locked down 583 | -9/Materials | Loaded intel: 2 repair station locations 586 | -9/Materials | Loaded intel: 2 recycling unit locations 587 | -9/Materials | Loaded intel: 9 trap records 588 | -9/Materials | Learned location of 1 exit from Recycling 592 | -9/Materials | Loaded intel: 12 terminal locations 606 | -9/Materials | Learned location of 1 exit from Storage 687 | -9/Materials | Core integrity fell below 50% 713 | -9/Materials | Reached level 4 728 | -9/Materials | Core integrity fell below 20% 734 | -9/Materials | Destroyed 8 combat bots 773 | -9/Materials | Entered Mines 781 | -9/Mines | Destroyed by S-10 Pest with Light Assault Rifle Last Messages --------------- Downloading prototype IDs... Prc. Beam Rifle Imp. EM Shotgun >>Layout(Zone) Retrieving Zone 1E layout... Downloaded map data. LOCATION=MINES GOAL=ESCAPE Something is scanning the area. 00773_ Sneak attack on S-10 Pest. 00773_ Destroyed Flight Unit. 00773_ S-10 Pest system corrupted by crushing effect. Loading 2 Materials entrances... 00775_ S-10 Pest IFF system glitched. 00777_ S-10 Pest destroyed. 00777_ Destroyed Flight Unit. 00777_ S-10 Pest system corrupted by crushing effect. 00779_ S-10 Pest suffers critical hit (Destroy). Map ----- +----------------------------------------------------+ | | | ??????????????????????????????? | | ??????????????????????????????? | | ??????????????????????????????? | | ??????????????????????????????? | | ??????????????????????????????? | | ??????????????????????????????? | | ??????????????????????????????? | | ??????????????????????????????? | | ??????????????????????????????? | | ??????????????????????????????? | | ???####???????????????????????? | | ???####???????????????????????? | | ???## ???????????????????????? | | ???## ????????????????????????? | | ???## ????????????????????????? | | ???## ?####???????????????????? | | ??### ######??????????????????? | | ??### ##T###??????????????????? | | ??## ##??????????????????? | | ??##s ##??????????????????? | | ??## ######### ###???????? | | ??## * ######### ###???????? | | ??## %% #???????? | | ??## ????????? | | ??## s@ s########### ????????? | | ??## ########### ????????? | | ??######$###??????????????????? | | ??###### ###??????????????????? | | ???????# ???????????????????? | | ???????### ???????????????????? | | ???????### ##????????????????? | | ??????????? ##????????????????? | | ??????????? #????????????????? | | ???????????? ????????????????? | | ???????????? < ???????????????? | | ????????????? ???????????????? | | ??????????????? ??????????????? | | ??????????????????????????????? | | ??????????????????????????????? | | ??????????????????????????????? | | ??????????????????????????????? | | ?????????